Cogmind - Beta 13 X1 @@@ ROGUE MODE // 2023.06.25 @ 00:54:00 Player: cptwinky Result: Destroyed by G-67 Veteran with Plasma Rifle Performance ------------- Evolutions (6) 3000 Regions Visited (27) 5400 Robots Destroyed (602) 3010 Value Destroyed (26739) 26739 Prototype IDs (54) 1080 Alien Tech Used (0) 0 Bonus (14776) 14776 TOTAL SCORE: 54005 Bonus ------- Triggered High Security 500 High Alert Combat Kills 9081 Follower Combat Kills 2498 Entered Garrisons 600 Network Hubs Disabled 200 Met Data Miner 300 Met Imprinter 300 Destroyed Z-Imprinter 1000 Triggered Deep Caves Wall 500 Exposed GOLEM Chamber 500 A7 Reached Mainframe 300 Met R17 at Cetus 500 Friendly Fire -1503 Cogmind --------- Core Integrity 0/1150 Matter 49/300 Energy 75/100 System Corruption 2% Temperature Cool (0) Movement Core (100) Ox1 Location -4/Factory Parts ------- > --- POWER (2) -------- (None) > --- PROPULSION (4) --- (None) > --- UTILITY (11) ----- Assembled Combat Suite Experimental Transmission Jammer Graphene Brace > --- WEAPON (2) ------- (None) > --- INVENTORY (5) ---- Long-range Terrain Scanner Peak State ------------ > --- POWER ------------ Assembled Flux Generator > --- PROPULSION ------- High-density Centrium Heavy Treads Assembled Alloy Leg Assembled Alloy Leg > --- UTILITY ---------- Assembled Nanovents Assembled Nanovents Huge Storage Unit Assembled Biocell Array Experimental Sensor Array Advanced Signal Interpreter Assembled Combat Suite Experimental Transmission Jammer Assembled Alloy Armor GOLEM Unit > --- WEAPON ----------- Assembled Focal Cannon Assembled Focal Cannon > --- INVENTORY -------- Zionite Light DM Reactor Centrium Heavy Treads Zionite Biocell Zionite Biocell Long-range Terrain Scanner Advanced Terrain Scan Processor Improved Weapon Cycler Experimental Transmission Jammer Advanced Hardlight Generator Improved Hacking Suite Improved Component Analysis Suite Advanced System Restoration Module GOLEM Unit GOLEM Unit Long-range Proton Cannon Long-range Missile Launcher Ragnarok Missile Launcher Ragnarok Missile Launcher Ragnarok Missile Launcher Point Singularity Launcher Advanced Datajack CR-A16's Pointy Stick [Rating: 177] Favorites ----------- Power Assembled Flux Generator Engine Cooled Ion Engine Power Core Micro Nuclear Core Reactor Assembled Flux Generator Propulsion Improved Heavy Treads Treads Improved Heavy Treads Leg Assembled Alloy Leg Wheel Armored Huge Wheel Utility Huge Storage Unit Device GOLEM Unit Storage Huge Storage Unit Processor Advanced Targeting Computer Hackware Makeshift Hacking Suite Protection Assembled Alloy Armor Weapon Assembled Focal Cannon Energy Gun Gatling Laser Energy Cannon Assembled Focal Cannon Ballistic Gun Hypervelocity Coil Gun Ballistic Cannon Hypervelocity Gauss Cannon Launcher Missile Launcher Special Weapon Mining Laser Impact Weapon Makeshift Hammer Slashing Weapon Ripper Piercing Weapon CR-A16's Pointy Stick Special Melee Weapon Datajack Build | -11 -10 -10 -10 -8 -8 -8 -8 -8 -8 -8 -7 -7 -7 -7 -6 -6 -6 -6 -6 -6 -5 -5 -5 -5 -5 -5 -4 ------- Run | Jun Mat Min Sub Mat Gar Mat Gar Mat Gar Mat Fac Low Low Dat Pro Fac Low Low Zio Dee Pro Fac Ext Cet Arc Hub Fac Slots Evolved 12 | . . . . 4 . . . . . . 2 . . . . 2 . . . . . 2 . . . . 2 Power 1 | . . . . . . . . . . . . . . . . 1 . . . . . . . . . . . Propulsion 2 | . . . . 1 . . . . . . 1 . . . . . . . . . . . . . . . . Utility 9 | . . . . 3 . . . . . . 1 . . . . 1 . . . . . 2 . . . . 2 Weapon . | . . . . . . . . . . . . . . . . . . . . . . . . . . . . Parts Attached 531 | 2 11 4 33 38 29 34 21 18 4 35 24 24 4 3 14 32 19 23 16 37 16 12 5 2 3 3 65 Power 24 | . 1 . 1 1 2 1 . 2 . . 1 . . . . 6 1 4 . 3 . . . . . . 1 Engine 15 | . 1 . 1 1 . 1 . 2 . . 1 . . . . 2 1 3 . 2 . . . . . . . Core 7 | . . . . . 2 . . . . . . . . . . 4 . 1 . . . . . . . . . Reactor 2 | . . . . . . . . . . . . . . . . . . . . 1 . . . . . . 1 Propulsion 49 | 2 . 2 4 5 4 4 3 . . 9 3 2 . . . 3 2 1 . 1 . . . 1 . . 3 Treads 45 | 2 . 2 4 5 3 3 2 . . 8 3 2 . . . 3 2 1 . 1 . . . 1 . . 3 Leg . | . . . . . . . . . . . . . . . . . . . . . . . . . . . . Wheel 4 | . . . . . 1 1 1 . . 1 . . . . . . . . . . . . . . . . . Hover . | . . . . . . . . . . . . . . . . . . . . . . . . . . . . Flight . | . . . . . . . . . . . . . . . . . . . . . . . . . . . . Utility 241 | . 3 1 7 14 7 7 4 7 1 6 10 14 3 . 9 18 7 8 5 22 14 12 5 1 3 2 51 Device 120 | . 2 . 1 4 1 . 1 4 . . 5 8 2 . 4 10 5 6 4 9 9 9 3 . . . 33 Storage 12 | . 1 . 2 . . 1 . . . . . . . . . . 1 . . 2 1 1 . . 1 1 1 Processor 12 | . . . . . 1 3 . . . 1 1 . . . . 2 . . . . 2 1 . . . . 1 Hackware 4 | . . . . 1 . . . . . 1 . . . . . . . . 1 . . 1 . . . . . Protection 93 | . . 1 4 9 5 3 3 3 1 4 4 6 1 . 5 6 1 2 . 11 2 . 2 1 2 1 16 Artifact . | . . . . . . . . . . . . . . . . . . . . . . . . . . . . Weapon 217 | . 7 1 21 18 16 22 14 9 3 20 10 8 1 3 5 5 9 10 11 11 2 . . . . 1 10 Energy Gun 22 | . 5 1 6 . . . . . . . . 3 1 1 1 . . . 1 3 . . . . . . . Energy Cannon 30 | . . . 6 9 7 2 2 1 . . . . . . . . . . . 3 . . . . . . . Ballistic Gun 63 | . . . . 1 . 10 7 5 2 13 5 2 . . 3 3 4 6 1 1 . . . . . . . Ballistic Cannon 7 | . . . 1 . 2 2 . . . . . . . . . . . 1 . . 1 . . . . . . Launcher 50 | . . . . 6 3 7 1 3 1 3 3 2 . 1 1 1 4 . 2 3 1 . . . . . 8 Special Weapon 10 | . . . 5 . 2 1 . . . . . . . . . 1 . 1 . . . . . . . . . Impact Weapon 15 | . . . 1 2 1 . 3 . . . 2 1 . . . . 1 1 3 . . . . . . . . Slashing Weapon 1 | . . . . . . . . . . . . . . . . . . . . 1 . . . . . . . Piercing Weapon 3 | . . . . . . . . . . . . . . . . . . . 3 . . . . . . . . Special Melee Weapon 16 | . 2 . 2 . 1 . 1 . . 4 . . . 1 . . . 1 1 . . . . . . 1 2 Unidentified Prototypes 21 | . . . . . . 1 . . . 1 . . . . 1 2 . . . 11 . . . 1 1 . 3 Corrupted Parts 3 | . . . 2 . . . . 1 . . . . . . . . . . . . . . . . . . . System Corruption 6 | . . . 3 . . . . 3 . . . . . . . . . . . . . . . . . . . Parts Lost 55 | . . . 1 3 5 . . 2 1 2 1 1 . . . 2 3 . . 2 1 . 1 . . 2 28 Power 7 | . . . . . 2 . . . . . 1 . . . . 2 . . . . . . . . . . 2 Propulsion 7 | . . . . . 2 . . . . 1 . . . . . . . . . . . . . . . . 4 Utility 33 | . . . . 2 1 . . 1 . 1 . 1 . . . . 3 . . 2 1 . 1 . . 2 18 Weapon 8 | . . . 1 1 . . . 1 1 . . . . . . . . . . . . . . . . . 4 Highest Loss Streak 15 | . . . 1 1 2 . . 1 1 2 1 1 . . . 1 3 . . 1 1 . 1 . . 1 15 To Critical Strikes 1 | . . . . . . . . . . . . . . . . . . . . . . . . . . . 1 Average Slot Usage (%) 84 | . 97 100 88 89 91 82 79 80 81 92 91 88 84 70 83 87 83 84 78 78 76 81 82 77 70 80 83 Engine 6 | . 14 14 14 9 3 2 9 8 9 9 7 7 7 7 7 5 13 12 13 8 . . . . . . . Reactor 1 | . . . . . . . . . . . . . . . . . . . . 2 6 5 5 5 5 5 4 Treads 16 | . 28 28 28 26 19 16 12 9 9 21 23 23 23 23 23 18 19 18 13 10 6 5 5 5 5 5 5 Leg 3 | . . . . . . . . . . . . . . . . . . . . 4 13 11 11 11 11 11 9 Device 7 | . 12 9 . 4 8 3 . 5 . . 3 6 6 7 3 2 3 6 12 14 9 12 9 6 5 15 24 Storage 8 | . 14 14 3 9 9 9 9 9 9 9 7 7 7 7 7 6 6 6 6 9 12 11 11 11 10 11 9 Processor 8 | . . . . . 6 16 14 9 9 9 15 15 15 15 15 16 20 18 13 4 . 10 11 11 5 5 4 Hackware 1 | . . . . 9 2 . . . . 5 7 . . . . . . . . . . 4 5 1 . . . Protection 10 | . . 4 13 16 16 8 10 11 17 17 11 12 8 7 10 16 6 6 6 10 12 5 6 9 10 11 10 Energy Gun 2 | . 19 28 6 . . . . . . . . 8 14 . . . . . . . . . . . . . . Energy Cannon 6 | . . . 19 12 6 . . . . . . . . . . . . . . 6 12 10 11 11 11 10 9 Ballistic Gun 5 | . 7 . . . 6 14 16 17 17 17 14 4 . . 13 13 12 12 7 3 . . . . . . . Naked Turns . | . . . . . . . . . . . . . . . . . . . . . . . . . . . . Heaviest Build 183 | 10 32 41 43 61 67 127 120 118 122 122 140 140 138 119 128 162 146 141 147 170 170 164 164 165 166 166 183 Greatest Support 155 | 40 40 40 40 62 62 102 95 28 28 73 117 117 115 115 115 123 123 150 150 150 60 60 60 60 60 60 155 Greatest Overweight (x) 54 | . . 1 1 1 2 4 4 4 4 6 1 1 1 1 1 1 1 1 . 5 5 2 2 2 54 2 4 Average Overweight (x) 1 | . . . . . . 1 3 3 4 1 . . . . . 1 1 . . . 2 2 2 2 19 2 1 Largest Inventory Capacity 25 | 8 15 15 15 15 15 25 25 25 25 25 25 25 25 25 25 25 25 25 25 25 25 25 25 25 25 25 25 Average Capacity 21 | 8 9 15 7 15 15 24 25 25 25 25 25 25 25 25 25 25 25 25 25 24 24 25 25 25 24 25 24 Most Carried 25 | 6 14 15 15 15 15 25 25 25 25 25 25 25 25 25 25 25 25 25 25 25 25 25 25 25 25 25 25 Average Carried 21 | 6 7 14 7 14 14 22 24 24 24 24 24 24 25 24 24 24 24 24 24 23 24 24 24 24 24 23 24 Final Capacity 25 | 8 15 15 15 15 15 25 25 25 25 25 25 25 25 25 25 25 25 25 25 25 25 25 25 25 25 25 5 Final Carried 25 | 6 14 15 15 15 15 24 25 25 24 25 24 25 25 24 25 25 24 24 25 25 25 25 25 24 25 23 1 Class Distribution -------------------- 67% | Mutant 23% | Golem 6% | Commander-Golem Dominant Class ---------------- Mutant | -10/Materials Mutant | -10/Mines Mutant | -10/Subcaves Mutant | -8/Materials Mutant | -8/Garrison Mutant | -8/Materials Mutant | -8/Garrison Mutant | -8/Materials Mutant | -8/Garrison Mutant | -8/Materials Mutant | -7/Factory Mutant | -7/Lower Caves Mutant | -7/Lower Caves Mutant | -7/Data Miner Mutant | -6/Proximity Caves Mutant | -6/Factory Mutant | -6/Lower Caves Mutant | -6/Lower Caves Mutant | -6/Zion Mutant | -6/Deep Caves Golem | -5/Proximity Caves Golem | -5/Factory Commander-Golem | -5/Extension Commander-Golem | -5/Cetus Commander-Golem | -5/Archives Golem | -5/Hub_04(d) Golem | -4/Factory Resources | -11 -10 -10 -10 -8 -8 -8 -8 -8 -8 -8 -7 -7 -7 -7 -6 -6 -6 -6 -6 -6 -5 -5 -5 -5 -5 -5 -4 ----------- Run | Jun Mat Min Sub Mat Gar Mat Gar Mat Gar Mat Fac Low Low Dat Pro Fac Low Low Zio Dee Pro Fac Ext Cet Arc Hub Fac Matter Collected 15149 | 220 144 86 429 1464 611 1139 677 782 103 1201 896 1521 99 . 468 1257 682 470 180 922 200 85 78 20 30 30 1355 Remotely . | . . . . . . . . . . . . . . . . . . . . . . . . . . . . Salvage Created 26166 | . 331 51 1054 1837 819 1552 1019 1462 136 1773 891 659 71 . 517 1429 612 551 . 1045 1670 260 1187 . . 721 6519 Parts 1259 | . 20 3 69 102 39 87 56 96 7 98 55 23 9 . 18 78 26 23 . 29 71 19 57 . . 32 242 Haulers Intercepted 17 | . 1 . . 3 . 2 . 3 . 5 1 . . . 1 1 . . . . . . . . . . . Recyclers Shooed 13 | . 1 . . . . 1 . 2 . 1 1 . . . . . . . . . . . 3 . . 1 3 Parts Field Recycled . | . . . . . . . . . . . . . . . . . . . . . . . . . . . . Retrieved Matter . | . . . . . . . . . . . . . . . . . . . . . . . . . . . . Parts Self-Destructed 190 | . . . 8 . . . . . . . . 26 9 . 32 . 25 17 2 . 71 . . . . . . Prevented 14 | . . . 4 . . . . . . . . . . . . . . 10 . . . . . . . . . Kills | -11 -10 -10 -10 -8 -8 -8 -8 -8 -8 -8 -7 -7 -7 -7 -6 -6 -6 -6 -6 -6 -5 -5 -5 -5 -5 -5 -4 ------- Run | Jun Mat Min Sub Mat Gar Mat Gar Mat Gar Mat Fac Low Low Dat Pro Fac Low Low Zio Dee Pro Fac Ext Cet Arc Hub Fac Combat Hostiles Destroyed 542 | . 10 3 22 33 21 32 28 36 6 33 19 8 4 . 10 19 15 5 . 46 33 6 15 . . 12 126 Melee 7 | . . . . 2 4 . . . . . . . . . 1 . . . . . . . . . . . . Guns 180 | . 10 3 6 . 1 15 22 29 4 29 14 4 1 . 5 19 8 5 . 5 . . . . . . . Cannons 149 | . . . 10 9 11 4 . 1 . . . . . . . . . . . 5 29 3 14 . . 12 51 AOE 189 | . . . . 16 5 13 5 6 2 4 5 4 3 . 4 . 7 . . 34 4 3 . . . . 74 Classes Destroyed 31 | . 5 . 3 8 2 1 1 . . . . 3 . . . . . . . 4 . . . . . 1 3 Worker 17 | . . . . 5 . . . 2 . 3 1 . . . . 1 . . . . . . . . . 1 4 Builder 13 | . . . . 5 . 2 . 1 . 1 1 . . . . 1 . . . . . . 1 . . . 1 Tunneler 5 | . . . . 2 . 2 . . . . 1 . . . . . . . . . . . . . . . . Hauler 17 | . 1 . . 3 . 2 . 3 . 5 1 . . . 1 1 . . . . . . . . . . . Recycler 15 | . . . . 4 . 1 . . . 3 2 . . . . . . . . . . . 1 . . . 4 Minesweeper 4 | . . . . . . . . . . . . 1 . . . . . 1 . . 2 . . . . . . Mechanic 9 | . . . . . . 2 . . . 1 . . . . . 1 . . . . . . . . . . 5 Operator 7 | . 1 . . . . 2 . 1 . 2 . . . . . . . . . . . . . . . . 1 Watcher 23 | . 1 . . 5 1 2 . 2 . 3 1 . . . . 1 . . . . . 1 1 . . . 5 Swarmer 100 | . 4 3 3 6 . . 6 11 3 6 11 5 3 . 4 . 7 . . . 10 5 3 . . . 10 Cutter 3 | . . . . . . . 3 . . . . . . . . . . . . . . . . . . . . Saboteur 6 | . . . . . . . . . . . . . . . . . . . . . . . . . . . 6 Grunt 213 | . 6 . 1 18 10 22 15 16 3 19 6 1 . . 5 8 4 4 . . 15 . 3 . . 4 53 Brawler 18 | . . . . 1 1 2 1 1 . . . . . . . . 1 1 . . . . 1 . . . 9 Duelist 13 | . . . . 1 1 1 . . . 1 . . . . 1 . 2 . . . . . . . . . 6 Protector 6 | . . . . 1 . . . 1 . . . . . . . . . . . . . . . . . . 4 Sentry 52 | . . . 1 5 2 6 2 6 . 7 . 1 . . . 3 1 . . . 3 1 7 . . 1 6 Specialist 7 | . . . . . . . . . . . . . . . . . . . . . . . . . . . 7 Hunter 22 | . . . . 1 . 1 1 1 . . . . 1 . . 2 . . . . 2 . . . . 4 9 Programmer 31 | . . . . . 6 . . . . . 2 . . . . 6 . . . . 2 . . . . 2 13 Heavy 3 | . . . . . . . . . . . . . . . . . . . . . . . . . . 1 2 Behemoth 4 | . . . . . 1 . . . . . . 1 . . . . . . . . 1 . 1 . . . . Enhanced Grunt 1 | . . . . . . . . . . . . . . . . . . . . 1 . . . . . . . Striker 1 | . . . . . . . . . . . . . . . . . . . . . . . . . . . 1 Artisan 2 | . . . 2 . . . . . . . . . . . . . . . . . . . . . . . . Subdweller 17 | . . . 17 . . . . . . . . . . . . . . . . . . . . . . . . Z-Light 4 | . . . . . . . . . . . . . . . . . . . . 4 . . . . . . . Samaritan 3 | . . . . . . . . . . . . 3 . . . . . . . . . . . . . . . Assembler 2 | . . . . . . . . . . . . . . . . . . . . 2 . . . . . . . Assembled 40 | . . . . . . . . . . . . . . . . . . . . 40 . . . . . . . Golem 2 | . . . . . . . . . . . . . . . . . . . . 2 . . . . . . . Thug 1 | . . . . . . . . . . . . 1 . . . . . . . . . . . . . . . Savage 2 | . . . . . . . . . . . . 1 . . . . . 1 . . . . . . . . . Mutant 1 | . . . . . . . . . . . . 1 . . . . . . . . . . . . . . . Commander 1 | . . . . . . . . . . . . . . . . . . 1 . . . . . . . . . Best Kill Streak 36 | . 3 3 3 9 4 12 7 6 3 5 7 4 3 . 3 4 5 3 . 36 6 4 5 . . 11 21 Combat Bots Only 34 | . 3 3 3 6 4 8 7 6 3 4 5 4 3 . 3 3 5 3 . 34 6 4 2 . . 10 17 Max Kills in Single Turn 16 | . 2 2 2 6 2 4 4 3 1 3 3 2 3 . 3 1 3 1 . 16 2 3 2 . . 1 8 Gunslinging 1 | . 1 . 1 . . . . 1 . 1 . . . . . . . . . 1 . . . . . . . Exploded 16 | . . . . 3 2 2 4 3 1 2 3 2 3 . 3 . 3 . . 16 2 3 . . . . 7 Melee 1 | . . . . 1 1 . . . . . . . . . 1 . . . . . . . . . . . . Uniques/NPCs Destroyed 1 | . . . . . . . . . . . . . . . . . . . . 1 . . . . . . . Z-Imprinter (-6/Deep Caves) Combat | -11 -10 -10 -10 -8 -8 -8 -8 -8 -8 -8 -7 -7 -7 -7 -6 -6 -6 -6 -6 -6 -5 -5 -5 -5 -5 -5 -4 -------- Run | Jun Mat Min Sub Mat Gar Mat Gar Mat Gar Mat Fac Low Low Dat Pro Fac Low Low Zio Dee Pro Fac Ext Cet Arc Hub Fac Damage Taken 27872 | . 264 52 1100 1229 1362 1655 768 1256 224 1206 761 681 55 . 379 1541 581 196 . 1161 1529 31 527 . . 1841 9473 Core 2463 | . 7 . 40 58 113 86 65 80 . 118 33 84 . . 51 110 49 20 . 142 121 . 23 . . 100 1163 Absorbed by Shields 1402 | . . . . 44 100 . 62 . . . . 64 . . . . . . . 171 . . 20 . . . 941 Reduced by Siege Mode 89 | . . . . . . 27 . . . . . . . . . . . . . 23 20 . 10 . . 4 5 Redirected to Shielding 151 | . . . . . . . . . . . . . . . . . . . . 47 . . . . . . 104 Ignored by Resistances 3478 | . . . 61 70 28 . . . . 51 179 265 12 . 18 275 9 . . 229 310 7 110 . . 361 1493 Regen/Repaired (Parts) 2787 | . . . . 201 . 703 . . . 482 . . . . . 812 . . . . . . . . . . 589 Core Remaining (%) 66 | 100 . . 81 . . . . . . 5 . . . . 76 . . . . . 48 . . . . 87 . Volleys Fired 1423 | . 43 5 98 89 76 97 65 87 13 96 56 27 2 . 29 79 48 25 . 52 97 18 47 1 1 28 244 Largest 2 | . 2 2 2 2 2 2 2 2 2 2 2 2 2 . 2 2 2 2 . 2 2 2 2 1 2 2 2 Hottest 160 | . 105 90 112 126 121 138 81 81 46 56 70 160 160 . 95 70 70 70 . 141 50 50 50 25 50 50 70 Shots Fired 2477 | . 85 10 181 133 131 169 117 165 20 187 110 52 3 . 55 158 81 50 . 95 169 28 84 1 2 49 342 Gun 1337 | . 85 10 70 3 46 119 108 156 17 183 108 50 2 . 50 158 76 50 . 46 . . . . . . . Cannon 998 | . . . 104 117 66 32 7 1 . . . . . . . . . . . 32 167 28 84 1 2 49 308 Launcher 116 | . . . . 13 5 13 2 8 3 4 2 2 1 . 5 . 5 . . 17 2 . . . . . 34 Special 26 | . . . 7 . 14 5 . . . . . . . . . . . . . . . . . . . . . Kinetic 1205 | . 37 . . 3 62 146 108 156 17 183 108 12 . . 45 158 80 50 . 40 . . . . . . . Thermal 820 | . 38 . 7 . 64 5 . . . . . 40 2 . 5 . . . . 20 167 28 84 1 2 49 308 Explosive 110 | . . . . 13 5 13 2 8 3 4 2 . 1 . 5 . 1 . . 17 2 . . . . . 34 Electromagnetic 342 | . 10 10 174 117 . 5 7 1 . . . . . . . . . . . 18 . . . . . . . Robot Hit Streak 56 | . 11 4 21 12 13 18 56 21 6 27 20 35 4 . 11 24 9 20 . 19 23 9 37 . 4 11 37 Robot Miss Streak 7 | . 6 4 3 7 4 2 4 3 2 6 2 3 2 . 3 5 3 1 . 3 3 2 2 . . 1 4 Penetration Max 2 | . . . . . . 1 . . . . 1 . . . 1 2 1 2 . 1 . . . . . . . Secondary Targets 19 | . 1 1 1 . . . 5 4 . 2 . . . . . 3 . 1 . 1 . . . . . . . Max Gunslinging Chain 1 | . 1 1 1 . . . 1 1 . 1 . . . . . 1 . 1 . 1 . . . . . . . Shots Hit Robots 1789 | . 52 7 128 91 101 130 99 129 11 152 80 49 2 1 36 121 50 45 1 61 92 15 71 . 2 34 229 Core Hits 1263 | . 25 5 51 76 45 84 44 80 9 143 40 33 4 . 24 50 35 18 . 104 35 19 25 . . 13 301 Critical Kills 51 | . 1 . . . 3 1 . . . . 2 2 . . 5 22 4 8 . 3 . . . . . . . Critical Parts Destroyed 82 | . 1 . . . 6 4 . 2 . . . 3 . . 6 31 15 12 . 2 . . . . . . . Critical Strikes 144 | . 2 . . 2 10 6 . 2 . . 2 5 . . 11 57 19 23 . 5 . . . . . . . Burn 1 | . . . . . 1 . . . . . . . . . . . . . . . . . . . . . . Destroy 137 | . 2 . . . 8 5 . 2 . . 2 3 . . 11 57 19 23 . 5 . . . . . . . Blast 1 | . . . . . . 1 . . . . . . . . . . . . . . . . . . . . . Corrupt 2 | . . . . 2 . . . . . . . . . . . . . . . . . . . . . . . Smash 3 | . . . . . 1 . . . . . . 2 . . . . . . . . . . . . . . . Melee Attacks 105 | . 1 . 17 10 28 . 16 . . . 2 7 . 1 . . 1 7 9 4 . . . . . . 2 Impact 80 | . . . 14 10 25 . 6 . . . 2 7 . . . . 1 7 8 . . . . . . . . Slashing 4 | . . . . . . . . . . . . . . . . . . . . 4 . . . . . . . Piercing 2 | . . . . . . . . . . . . . . . . . . . . . . . . . . . 2 Sneak Attacks 21 | . 1 . 2 . 3 . 10 . . . . 3 . 1 . . . . 1 . . . . . . . . Combat Hostiles 2 | . . . 2 . . . . . . . . . . . . . . . . . . . . . . . . Follow-up Attacks . | . . . . . . . . . . . . . . . . . . . . . . . . . . . . Damage Inflicted 77250 | . 528 80 1948 4703 3037 4253 1883 3204 515 3561 1908 1992 239 . 1040 1136 1191 406 . 5033 5459 906 3447 . 98 1817 28866 Guns 14939 | . 525 80 784 10 559 1466 1310 2036 191 2692 1500 1065 36 . 350 1040 415 406 . 474 . . . . . . . Cannons 26452 | . . . 1065 2060 948 568 162 38 . . . . . . . . . . . 880 4821 722 3420 . 98 1817 9853 Explosions 33615 | . . . 99 2385 579 2163 408 1130 324 869 399 230 203 . 690 75 776 . . 3551 638 183 . . . . 18913 Melee 1862 | . . . . 229 806 . . . . . . 697 . . . . . . . 128 . . . . . . 2 Ramming 223 | . 3 . . 19 10 32 3 . . . 9 . . . . 21 . . . . . 1 27 . . . 98 Kinetic 14057 | . 155 . . 10 836 1951 1310 2036 191 2692 1500 288 . . 265 1040 1002 406 . 375 . . . . . . . Thermal 25798 | . 290 . 99 536 806 24 . . . 199 . 1007 36 . 85 . . . . 649 5028 722 3420 . 98 1817 10982 Explosive 30061 | . . . . 1849 579 2163 408 1130 324 670 399 . 203 . 690 75 189 . . 3551 431 . . . . . 17400 Electromagnetic 5249 | . 80 80 1849 2060 . 83 162 38 . . . . . . . . . . . 330 . 183 . . . . 384 Impact 1732 | . . . . 229 806 . . . . . . 697 . . . . . . . . . . . . . . . Slashing 128 | . . . . . . . . . . . . . . . . . . . . 128 . . . . . . . Piercing 2 | . . . . . . . . . . . . . . . . . . . . . . . . . . . 2 Highest Corruption 11 | . . . 3 1 6 6 6 9 9 11 1 1 1 1 1 . . . . . 1 . . . . 10 8 Average Corruption 3 | . . . 2 1 2 6 6 6 9 10 1 1 1 1 1 . . . . . 1 . . . . 5 1 Corruption Purged 17 | . . . . . . . . . . . . . . . 1 . . . . . 1 . . . . . 15 Corruption Blocked 3 | . . . . . . . . . . . . . . . . 3 . . . . . . . . . . . Effects 325 | . . . . 13 14 61 36 31 13 82 2 23 15 1 1 . . . . . 3 . . . . . 30 Message Errors 79 | . . . . 3 5 12 10 11 2 21 . 5 6 . . . . . . . . . . . . . 4 Matter Fused 74 | . . . . 5 2 14 7 5 3 17 . 6 1 1 . . . . . . 2 . . . . . 11 Heat Flow Errors 33 | . . . . 2 . 6 3 3 3 8 . 2 3 . . . . . . . . . . . . . 3 Energy Discharges 32 | . . . . . . 5 1 4 2 9 1 2 2 . . . . . . . . . . . . . 6 Parts Rejected 4 | . . . . . . 1 1 1 . 1 . . . . . . . . . . . . . . . . . Parts Fused 3 | . . . . . . 1 . . . 1 . 1 . . . . . . . . . . . . . . . Data Loss (minor) 44 | . . . . 1 2 9 7 1 2 12 1 3 2 . . . . . . . . . . . . . 4 Data Loss (major) 22 | . . . . 1 . 6 3 2 . 5 . 3 1 . . . . . . . . . . . . . 1 Misfires 14 | . . . . . 3 4 1 1 . 2 . . . . 1 . . . . . 1 . . . . . 1 Alerts 10 | . . . . 1 2 . 2 2 . 2 . 1 . . . . . . . . . . . . . . . Misdirections 1 | . . . . . . . . . . 1 . . . . . . . . . . . . . . . . . Weapon Failures 9 | . . . . . . 3 1 1 1 3 . . . . . . . . . . . . . . . . . Overload Shots . | . . . . . . . . . . . . . . . . . . . . . . . . . . . . Overflow Damage 3267 | . . . 16 92 152 25 50 49 9 24 . 656 . . 36 . 15 . . 307 471 9 78 . . 75 1203 Projectiles 1190 | . . . . 32 . 10 . . . . . . . . . . . . . 188 422 9 78 . . 75 376 Explosions 1242 | . . . 16 32 . 15 50 49 9 24 . 1 . . 36 . 15 . . 119 49 . . . . . 827 Melee 835 | . . . . 28 152 . . . . . . 655 . . . . . . . . . . . . . . . Knockbacks 8 | . . . . 2 . 6 . . . . . . . . . . . . . . . . . . . . . Impact 2 | . . . . 2 . . . . . . . . . . . . . . . . . . . . . . . Kinetic 5 | . . . . . . 5 . . . . . . . . . . . . . . . . . . . . . Secondary 1 | . . . . . . 1 . . . . . . . . . . . . . . . . . . . . . Self-Inflicted Damage 1134 | . . . 55 150 18 147 . 63 . 109 . . 27 . 22 67 33 . . 9 35 . . . . . 399 Shots 35 | . . . 1 6 1 4 . 3 . 5 . . 1 . 1 1 1 . . 1 1 . . . . . 9 Rammed 15 | . 1 . . 2 1 5 1 . . . 3 . . . . 2 . . . . . . . . . . . Targets Rammed 30 | . 2 . . 4 1 5 1 . . . 3 . . . 1 2 . . . . . 1 3 . . . 7 Kicked 11 | . . . . . . . . . . . . . . . . . . . . . . 1 3 . . . 7 Crushed 4 | . 1 . . 2 . . . . . . . . . . 1 . . . . . . . . . . . . Highest Temperature 557 | . 70 . 251 280 557 218 253 245 281 275 194 336 253 . 126 340 280 213 . 324 294 . . . . 2 112 Average Temperature 73 | . 19 . 53 88 139 33 51 53 76 50 48 105 94 . 38 64 101 64 . 91 47 . . . . 2 34 Received Heat Transfer 7297 | . 78 . 433 464 243 792 302 558 90 486 153 384 . . 66 210 162 90 . 146 701 . 72 . . 325 1542 Effects 13 | . . . . . 9 . . . . 1 . . 1 . . . 2 . . . . . . . . . . Energy Bleed 7 | . . . . . 6 . . . . 1 . . . . . . . . . . . . . . . . . Interference 3 | . . . . . . . . . . . . . 1 . . . 2 . . . . . . . . . . Damage (minor) 1 | . . . . . 1 . . . . . . . . . . . . . . . . . . . . . . Damage (major) 2 | . . . . . 2 . . . . . . . . . . . . . . . . . . . . . . Siege Activations 16 | . . . . . . 3 . . . . . . . . . . 1 1 . 3 1 . 4 . . 1 2 Total Turns 563 | . . . . . . 92 . . . . . . . . . . 80 34 . 69 24 . 178 . . 18 68 Longest Duration 80 | . . . . . . 55 . . . . . . . . . . 80 34 . 25 24 . 61 . . 18 58 Robots Corrupted 15 | . . . 6 6 . . 1 . . . . . . . . . . . . 2 . . . . . . . Combat Hostiles 15 | . . . 6 6 . . 1 . . . . . . . . . . . . 2 . . . . . . . Parts Fried 44 | . . . 17 18 . . 3 . . . . 5 . . . . . 1 . . . . . . . . . Impact Corruptions 42 | . . . . 2 12 . . . . . . 28 . . . . . . . . . . . . . . . Robots Melted 2 | . . . . . . . . . . . . . . . . . . . . . . . 1 . . . 1 Combat Hostiles 2 | . . . . . . . . . . . . . . . . . . . . . . . 1 . . . 1 Parts Melted 10 | . . . . . . . . . . . . 1 . . . . . . . . 1 . 5 . . . 3 Heat Transferred 17775 | . 625 . 100 500 2119 100 . . . 200 . 2150 75 . 100 . . . . 350 2385 375 1825 . 50 961 5860 Parts Sabotaged 3 | . . . . . . . . . . . . . . . . 3 . . . . . . . . . . . Parts Stolen . | . . . . . . . . . . . . . . . . . . . . . . . . . . . . Parts Stripped . | . . . . . . . . . . . . . . . . . . . . . . . . . . . . Power Chain Reactions 9 | . . . 2 7 . . . . . . . . . . . . . . . . . . . . . . . Missiles Intercepted . | . . . . . . . . . . . . . . . . . . . . . . . . . . . . Alert | -11 -10 -10 -10 -8 -8 -8 -8 -8 -8 -8 -7 -7 -7 -7 -6 -6 -6 -6 -6 -6 -5 -5 -5 -5 -5 -5 -4 ------- Run | Jun Mat Min Sub Mat Gar Mat Gar Mat Gar Mat Fac Low Low Dat Pro Fac Low Low Zio Dee Pro Fac Ext Cet Arc Hub Fac Peak Influence 3776 | . 251 135 . 605 1192 1187 1773 1566 1205 844 731 . . . . 456 . . . . . 268 369 369 295 456 3776 Initial 1019 | . . 65 . . 308 581 730 863 1019 586 383 . . . . 72 . . . . . 81 57 132 138 . 81 Average 569 | . 96 57 . 320 676 883 1358 1232 1113 598 592 . . . . 278 . . . . . 145 140 295 68 257 1095 Maximum Alert Level 5 | . 1 . . 2 4 4 5 4 4 3 3 . . . . 2 . . . . . 1 1 1 1 2 5 Low Security (%) 32 | 100 95 100 . 40 . . . . . . . . . . . 24 . . . . . 68 69 10 82 27 21 Level 1 14 | . 4 . . 7 14 . . . . 3 9 . . . . 54 . . . . . 31 30 89 17 52 4 Level 2 21 | . . . . 51 40 8 . . . 81 62 . . . . 20 . . . . . . . . . 20 13 Level 3 15 | . . . . . 44 75 27 29 45 15 28 . . . . . . . . . . . . . . . 16 Level 4 11 | . . . . . 1 15 45 70 54 . . . . . . . . . . . . . . . . . 27 Level 5 2 | . . . . . . . 27 . . . . . . . . . . . . . . . . . . . 4 High Security 1 | . . . . . . . . . . . . . . . . . . . . . . . . . . . 13 Max Security . | . . . . . . . . . . . . . . . . . . . . . . . . . . . . Squads Dispatched 82 | . 4 1 . 10 . 7 . 7 . 4 4 . . . . 8 . . . . . 1 . . . 6 30 Investigation 15 | . 2 1 . 2 . 2 . 3 . 1 1 . . . . 2 . . . . . . . . . . 1 Extermination 9 | . . . . . . . . . . . . . . . . 2 . . . . . 1 . . . 1 5 Reinforcement 22 | . 2 . . 3 . 3 . 2 . 2 1 . . . . 2 . . . . . . . . . 5 2 Assault 31 | . . . . 1 . 2 . 1 . 1 2 . . . . 2 . . . . . . . . . . 22 Garrison 5 | . . . . 4 . . . 1 . . . . . . . . . . . . . . . . . . . Intercept . | . . . . . . . . . . . . . . . . . . . . . . . . . . . . Searches Triggered . | . . . . . . . . . . . . . . . . . . . . . . . . . . . . Data Miner Redirects 9 | . . . . . . . . . . . . . . . . 2 . . . . . . . . . . 7 Construction Impeded 6 | . . . . 2 . 1 . . . . 1 . . . . 1 . . . . . . . . . 1 . Haulers Reinforced 2 | . . . . . . . . . . . . . . . . . . . . . . . . . . 2 . Active Scanning Responses . | . . . . . . . . . . . . . . . . . . . . . . . . . . . . Cargo Convoy Interrupts 1 | . . . . . . . . . . . . . . . . . . . . . . . . . . . 1 Stealth | -11 -10 -10 -10 -8 -8 -8 -8 -8 -8 -8 -7 -7 -7 -7 -6 -6 -6 -6 -6 -6 -5 -5 -5 -5 -5 -5 -4 --------- Run | Jun Mat Min Sub Mat Gar Mat Gar Mat Gar Mat Fac Low Low Dat Pro Fac Low Low Zio Dee Pro Fac Ext Cet Arc Hub Fac Distress Signals 35 | . 2 . . 4 2 3 . 3 . 3 2 . . . . 1 . . . . . . 5 2 . 4 4 Communications Jammed 65 | . . . . . . . . . . . . . . . . . . . . . . . . . . . 65 Distress Signals 60 | . . . . . . . . . . . . . . . . . . . . . . . . . . . 60 Times Spotted 785 | . 19 2 27 52 26 46 30 51 6 48 21 8 1 . 16 33 23 10 . 60 35 4 35 12 3 27 190 Peak Tracking Total 37 | . 5 1 3 5 6 5 7 7 3 5 5 3 1 . 4 5 5 3 . 37 7 1 9 5 2 11 26 Tactical Retreats 51 | . 1 . 1 4 1 2 1 2 . 1 1 . . . 2 1 9 4 . 10 1 1 5 . . . 4 Traps | -11 -10 -10 -10 -8 -8 -8 -8 -8 -8 -8 -7 -7 -7 -7 -6 -6 -6 -6 -6 -6 -5 -5 -5 -5 -5 -5 -4 ------- Run | Jun Mat Min Sub Mat Gar Mat Gar Mat Gar Mat Fac Low Low Dat Pro Fac Low Low Zio Dee Pro Fac Ext Cet Arc Hub Fac Traps Triggered 20 | . 1 . . . 2 . 6 3 2 1 . . . . . . . . . . . 1 2 . . . 2 Indirectly . | . . . . . . . . . . . . . . . . . . . . . . . . . . . . Trap Hack Attempts 123 | . 46 . . . . . . . . 65 . . . . . . . . . . . . . . . 9 3 Triggered . | . . . . . . . . . . . . . . . . . . . . . . . . . . . . Disarmed 2 | . . . . . . . . . . 2 . . . . . . . . . . . . . . . . . Reprogrammed 14 | . 4 . . . . . . . . 2 . . . . . . . . . . . . . . . 1 7 Reused 16 | . 4 . 1 1 . . . . . 2 . . . . . . . . . . 4 . . . . 2 2 Traps Extracted . | . . . . . . . . . . . . . . . . . . . . . . . . . . . . Installed 11 | . . . 2 1 . . . . . . . . . . . . . . . . 7 . . . . 1 . Triggered 18 | . 4 . . 1 . . . . . 2 . . . . . . . 2 . . 5 . . . . 2 2 Most Traps Carried 1 | . . . 1 1 . . . . . . . . . . . . . . . . 1 1 1 1 1 1 . Machines | -11 -10 -10 -10 -8 -8 -8 -8 -8 -8 -8 -7 -7 -7 -7 -6 -6 -6 -6 -6 -6 -5 -5 -5 -5 -5 -5 -4 ---------- Run | Jun Mat Min Sub Mat Gar Mat Gar Mat Gar Mat Fac Low Low Dat Pro Fac Low Low Zio Dee Pro Fac Ext Cet Arc Hub Fac Machines Disabled 78 | . . . . 4 7 6 4 6 1 4 . . . . . 2 1 1 . 2 6 4 . 1 1 . 28 Max in Single Turn 4 | . . . . 1 1 2 1 1 1 2 . . . . . 1 1 1 . 1 4 2 . 1 . . 4 Garrison Access 5 | . . . . . . . . . . . . . . . . 1 . . . . . 1 . . . . 3 Garrison Relay 8 | . . . . . 5 . 2 . 1 . . . . . . . . . . . . . . . . . . Network Hub 1 | . . . . . . . . . . . . . . . . . . . . . . . . . . 1 . Machines Repaired . | . . . . . . . . . . . . . . . . . . . . . . . . . . . . Machines Sabotaged 1 | . . . . . . . . . . . . . . . . 1 . . . . . . . . . . . Overloaded Fab Kills . | . . . . . . . . . . . . . . . . . . . . . . . . . . . . Hacking | -11 -10 -10 -10 -8 -8 -8 -8 -8 -8 -8 -7 -7 -7 -7 -6 -6 -6 -6 -6 -6 -5 -5 -5 -5 -5 -5 -4 --------- Run | Jun Mat Min Sub Mat Gar Mat Gar Mat Gar Mat Fac Low Low Dat Pro Fac Low Low Zio Dee Pro Fac Ext Cet Arc Hub Fac Machines Accessed 87 | . 6 1 . 10 1 10 1 7 . 10 3 . . 3 . 3 . 3 . . 1 3 6 1 . 1 17 Terminals 44 | . 5 . . 5 1 4 1 5 . 6 . . . . . 1 . . . . 1 1 5 1 . 1 7 Fabricators 4 | . . . . . . . . . . . 1 . . . . . . . . . . . . . . . 3 Repair Stations 11 | . . . . 2 . 1 . . . 2 . . . . . 2 . . . . . 1 . . . . 3 Recycling Units 9 | . 1 . . 1 . 2 . . . 1 2 . . . . . . . . . . . 1 . . . 1 Scanalyzers 5 | . . . . 1 . 2 . 1 . 1 . . . . . . . . . . . . . . . . . Garrison Access 7 | . . . . 1 . 1 . 1 . . . . . . . . . . . . . 1 . . . . 3 Total Hacks 238 | . 23 1 . 31 3 22 2 23 . 26 5 . . 22 . 8 . 6 . . 6 5 15 2 . 1 37 Successful 124 | . 9 1 . 20 1 9 1 7 . 12 4 . . 22 . 4 . 6 . . 6 1 7 . . 1 13 Failed 113 | . 14 . . 10 2 13 1 16 . 14 1 . . . . 4 . . . . . 4 8 2 . . 24 Catastrophic 26 | . 5 . . 1 1 2 . 1 . 2 . . . . . 2 . . . . . . 3 1 . . 8 Database Lockouts 1 | . . . . 1 . . . . . . . . . . . . . . . . . . . . . . . Manual 95 | . 16 . . 15 1 11 . 12 . 12 2 . . . . 2 . . 1 . . . 9 1 . 1 12 Terminals 119 | . 19 . . 15 3 10 2 12 . 14 . . . . . 2 . . . . 6 2 13 2 . 1 18 Fabricators 6 | . . . . . . . . . . . 2 . . . . . . . . . . . . . . . 4 Repair Stations 33 | . . . . 8 . 2 . . . 7 . . . . . 6 . . . . . 2 . . . . 8 Recycling Units 19 | . 4 . . 2 . 4 . . . 2 3 . . . . . . . . . . . 2 . . . 2 Scanalyzers 17 | . . . . 3 . 3 . 8 . 3 . . . . . . . . . . . . . . . . . Garrison Access 15 | . . . . 3 . 3 . 3 . . . . . . . . . . . . . 1 . . . . 5 Terminal Hacks 61 | . 7 1 . 6 1 2 1 1 . 3 . . . 22 . . . 6 . . 6 . 4 . . . 1 Record 16 | . . . . . . . . . . . . . . 6 . . . 4 . . 6 . . . . . . Part Schematic 9 | . . . . . . . . . . . . . . 9 . . . . . . . . . . . . . Robot Schematic 4 | . . . . . . . . . . . . . . 4 . . . . . . . . . . . . . Robot Analysis 7 | . 4 . . 3 . . . . . . . . . . . . . . . . . . . . . . . Prototype ID Bank 4 | . 1 . . . . . . . . . . . . 3 . . . . . . . . . . . . . Open Door 3 | . . 1 . . . . . . . . . . . . . . . 2 . . . . . . . . . Emergency Access Points 2 | . . . . . 1 . 1 . . . . . . . . . . . . . . . . . . . . Unreport Threat 7 | . . . . 1 . 1 . 1 . 2 . . . . . . . . . . . . 2 . . . . Locate Traps 5 | . 2 . . 1 . . . . . . . . . . . . . . . . . . 2 . . . . Reprogram Traps 1 | . . . . . . . . . . . . . . . . . . . . . . . . . . . 1 Zone Layout 3 | . . . . 1 . 1 . . . 1 . . . . . . . . . . . . . . . . . Fabricator Hacks 2 | . . . . . . . . . . . 2 . . . . . . . . . . . . . . . . Load Schematic 1 | . . . . . . . . . . . 1 . . . . . . . . . . . . . . . . Build 1 | . . . . . . . . . . . 1 . . . . . . . . . . . . . . . . Repair Station Hacks 21 | . . . . 7 . 2 . . . 3 . . . . . 4 . . . . . . . . . . 5 Scan Component 12 | . . . . 4 . 1 . . . 2 . . . . . 2 . . . . . . . . . . 3 Repair 9 | . . . . 3 . 1 . . . 1 . . . . . 2 . . . . . . . . . . 2 Recycling Unit Hacks 7 | . 1 . . 1 . 1 . . . 1 1 . . . . . . . . . . . 1 . . . 1 Retrieve Components 7 | . 1 . . 1 . 1 . . . 1 1 . . . . . . . . . . . 1 . . . 1 Scanalyzer 9 | . . . . 2 . . . 4 . 3 . . . . . . . . . . . . . . . . . Insert Component 4 | . . . . 1 . . . 2 . 1 . . . . . . . . . . . . . . . . . Analyze 5 | . . . . 1 . . . 2 . 2 . . . . . . . . . . . . . . . . . Garrison Access Hacks 7 | . . . . 1 . 1 . 1 . . . . . . . . . . . . . 1 . . . . 3 Unlock Access 3 | . . . . 1 . 1 . 1 . . . . . . . . . . . . . . . . . . . Seal Access 4 | . . . . . . . . . . . . . . . . . . . . . . 1 . . . . 3 Unauthorized Hacks 17 | . 1 . . 3 . 3 . 1 . 2 1 . . . . . . . . . . . 2 . . 1 3 Terminals 7 | . . . . 1 . 1 . 1 . 1 . . . . . . . . . . . . 1 . . 1 1 Track 1 | . . . . . . . . . . . . . . . . . . . . . . . . . . 1 . Botnet 6 | . . . . 1 . 1 . 1 . 1 . . . . . . . . . . . . 1 . . . 1 Fabricators 2 | . . . . . . . . . . . . . . . . . . . . . . . . . . . 2 Liberate 2 | . . . . . . . . . . . . . . . . . . . . . . . . . . . 2 Repair Stations . | . . . . . . . . . . . . . . . . . . . . . . . . . . . . Recycling Units 6 | . 1 . . 1 . 1 . . . 1 1 . . . . . . . . . . . 1 . . . . Reject 4 | . . . . 1 . . . . . 1 1 . . . . . . . . . . . 1 . . . . Tunnel 2 | . 1 . . . . 1 . . . . . . . . . . . . . . . . . . . . . Scanalyzers . | . . . . . . . . . . . . . . . . . . . . . . . . . . . . Garrison Access 2 | . . . . 1 . 1 . . . . . . . . . . . . . . . . . . . . . Reprogram 2 | . . . . 1 . 1 . . . . . . . . . . . . . . . . . . . . . Data Cores Recovered 2 | . . . . . . 1 . . . . . . . . . . . . . . . . . . . . 1 Used . | . . . . . . . . . . . . . . . . . . . . . . . . . . . . Hacking Detections 66 | . 6 . . 8 1 8 1 7 . 9 2 . . . . 2 . . . . 1 2 5 1 . . 13 Full Trace Events 9 | . . . . 1 . . . 2 . 2 1 . . . . 2 . . . . . . . . . . 1 Feedback Events 2 | . . . . . . . . . . 1 . . . . . . . . . . . . . . . . 1 Corruption 2 | . . . . . . . . . . 1 . . . . . . . . . . . . . . . . 1 Feedback Blocked . | . . . . . . . . . . . . . . . . . . . . . . . . . . . . Robot Schematics Acquired 7 | . . . . . . . . . . . . . . 4 . . . . 3 . . . . . . . . Robots Built . | . . . . . . . . . . . . . . . . . . . . . . . . . . . . Authchips . | . . . . . . . . . . . . . . . . . . . . . . . . . . . . Time . | . . . . . . . . . . . . . . . . . . . . . . . . . . . . Total Robot Build Rating . | . . . . . . . . . . . . . . . . . . . . . . . . . . . . Part Schematics Acquired 26 | . . . . 1 . . . 1 . 1 . . . 9 . . . . 14 . . . . . . . . Parts Built 2 | . . . . . . . . . . . 2 . . . . . . . . . . . . . . . . Authchips . | . . . . . . . . . . . . . . . . . . . . . . . . . . . . Time 58 | . . . . . . . . . . . 58 . . . . . . . . . . . . . . . . Total Part Build Rating 14 | . . . . . . . . . . . 14 . . . . . . . . . . . . . . . . Parts Repaired 9 | . . . . 3 . 1 . . . 1 . . . . . 2 . . . . . . . . . . 2 Time 610 | . . . . 200 . 56 . . . 86 . . . . . 106 . . . . . . . . . . 162 Parts Recycled . | . . . . . . . . . . . . . . . . . . . . . . . . . . . . Recycled Matter . | . . . . . . . . . . . . . . . . . . . . . . . . . . . . Retrieved Matter . | . . . . . . . . . . . . . . . . . . . . . . . . . . . . Retrieved Components 48 | . 10 . . 3 . 9 . . . 2 5 . . . . . . . . . . . 10 . . . 9 Parts Scanalyzed 3 | . . . . 1 . . . 1 . 1 . . . . . . . . . . . . . . . . . Part Schematics Acquired 3 | . . . . 1 . . . 1 . 1 . . . . . . . . . . . . . . . . . Parts Damaged 2 | . . . . 1 . . . 1 . . . . . . . . . . . . . . . . . . . Bothacking | -11 -10 -10 -10 -8 -8 -8 -8 -8 -8 -8 -7 -7 -7 -7 -6 -6 -6 -6 -6 -6 -5 -5 -5 -5 -5 -5 -4 ------------ Run | Jun Mat Min Sub Mat Gar Mat Gar Mat Gar Mat Fac Low Low Dat Pro Fac Low Low Zio Dee Pro Fac Ext Cet Arc Hub Fac Used RIF Installer . | . . . . . . . . . . . . . . . . . . . . . . . . . . . . Robots Hacked 3 | . 1 . . . . . . . . . . . . 1 . . . . 1 . . . . . . . . Non-combat 1 | . 1 . . . . . . . . . . . . . . . . . . . . . . . . . . Combat 2 | . . . . . . . . . . . . . . 1 . . . . 1 . . . . . . . . Robot Hacks Applied 3 | . 1 . . . . . . . . . . . . 1 . . . . 1 . . . . . . . . parse_system 2 | . . . . . . . . . . . . . . 1 . . . . 1 . . . . . . . . no_distress 1 | . 1 . . . . . . . . . . . . . . . . . . . . . . . . . . Relay Couplers Released 42 | . . . . . 21 . 9 . 3 . . . . . . 5 . . . . . . . . . . 4 Machine Destruction 34 | . . . . . 21 . 9 . 3 . . . . . . 1 . . . . . . . . . . . Programmers 8 | . . . . . . . . . . . . . . . . 4 . . . . . . . . . . 4 Fabnet Peak Effective % . | . . . . . . . . . . . . . . . . . . . . . . . . . . . . Robots Rewired 28 | . . . 2 . 1 . 3 . . . . . . . . . 1 . . . . . 21 . . . . Allies Hacked . | . . . . . . . . . . . . . . . . . . . . . . . . . . . . Hacks Repelled . | . . . . . . . . . . . . . . . . . . . . . . . . . . . . Allies | -11 -10 -10 -10 -8 -8 -8 -8 -8 -8 -8 -7 -7 -7 -7 -6 -6 -6 -6 -6 -6 -5 -5 -5 -5 -5 -5 -4 -------- Run | Jun Mat Min Sub Mat Gar Mat Gar Mat Gar Mat Fac Low Low Dat Pro Fac Low Low Zio Dee Pro Fac Ext Cet Arc Hub Fac Total Allies 51 | . . . 2 1 1 2 3 . . . . . . . 1 . 1 . 2 . . . 35 3 . . . Largest Group 31 | . . . 1 . 1 2 3 . . . . . . . 1 1 1 1 2 2 . . 31 27 13 9 . Highest-Rated Group 1133 | . . . 19 . 103 93 72 . . . . . . . 96 96 29 29 192 192 . . 1063 1133 660 404 . Highest-Rated Ally 159 | . . . 19 . 103 93 24 . . . . . . . 96 96 29 29 96 96 . . 159 159 159 89 . Warlord Squad Rendezvous 1 | . . . . . . . . . . . . . . . . 1 . . . . . . . . . . . Infantry 1 | . . . . . . . . . . . . . . . . 1 . . . . . . . . . . . Total Orders 14 | . . . 2 . 3 3 . . . . . . . . . . . . . . . . 3 2 . 1 . STAY 8 | . . . 1 . 1 2 . . . . . . . . . . . . . . . . 1 2 . 1 . ROAM 1 | . . . . . . . . . . . . . . . . . . . . . . . 1 . . . . FOLLOW 4 | . . . 1 . 1 1 . . . . . . . . . . . . . . . . 1 . . . . DROP 1 | . . . . . 1 . . . . . . . . . . . . . . . . . . . . . . Ally Attacks 408 | . . . 8 . 2 3 34 . . . . . . . 26 8 . 9 . 39 . . 101 103 32 43 . Total Damage 10531 | . . . 168 . 139 148 838 . . . . . . . 891 440 . 96 . 1129 . . 2443 2475 775 989 . Kills 78 | . . . 1 . 2 3 8 . . . . . . . 8 1 . 1 . 8 . . 13 14 7 12 . Allies Corrupted . | . . . . . . . . . . . . . . . . . . . . . . . . . . . . Allies Melted . | . . . . . . . . . . . . . . . . . . . . . . . . . . . . Intel | -11 -10 -10 -10 -8 -8 -8 -8 -8 -8 -8 -7 -7 -7 -7 -6 -6 -6 -6 -6 -6 -5 -5 -5 -5 -5 -5 -4 ------- Run | Jun Mat Min Sub Mat Gar Mat Gar Mat Gar Mat Fac Low Low Dat Pro Fac Low Low Zio Dee Pro Fac Ext Cet Arc Hub Fac Robot Analysis Total 7 | . 4 . . 3 . . . . . . . . . . . . . . . . . . . . . . . Derelict Logs Recovered 14 | . . 1 2 . . . . . . . . 2 2 . 1 . 2 1 2 . 1 . . . . . . Drone Launches . | . . . . . . . . . . . . . . . . . . . . . . . . . . . . Drone Recoveries . | . . . . . . . . . . . . . . . . . . . . . . . . . . . . Exploration | -11 -10 -10 -10 -8 -8 -8 -8 -8 -8 -8 -7 -7 -7 -7 -6 -6 -6 -6 -6 -6 -5 -5 -5 -5 -5 -5 -4 ------------- Run | Jun Mat Min Sub Mat Gar Mat Gar Mat Gar Mat Fac Low Low Dat Pro Fac Low Low Zio Dee Pro Fac Ext Cet Arc Hub Fac Turns Passed 53850 | 12 1151 757 5618 3079 1221 2001 1649 927 314 2185 831 3527 1798 149 1736 1509 2714 2530 1799 3697 4364 1020 2010 316 2223 913 3800 Spaces Moved 20737 | 6 513 402 2817 1147 531 706 734 369 163 707 262 1406 707 89 639 468 959 1052 1070 1613 1717 252 677 139 196 147 1249 Core 75 | . . . . . . . . . . . . . . . . . . . . . . . . . 67 . 8 Treads 14296 | 6 513 402 2817 1147 296 545 182 . 2 526 262 1406 707 89 639 468 959 1052 1070 1138 . . . . . . 70 Legs 4707 | . . . . . . . . . . . . . . . . . . . . 475 1717 252 677 139 129 147 1171 Wheels 1659 | . . . . . 235 161 552 369 161 181 . . . . . . . . . . . . . . . . . Hover . | . . . . . . . . . . . . . . . . . . . . . . . . . . . . Flight . | . . . . . . . . . . . . . . . . . . . . . . . . . . . . Fastest Speed 100 | 160 160 160 160 155 115 130 160 145 160 160 160 158 163 163 163 243 243 160 160 160 210 210 210 210 180 210 100 Average Speed 206 | 160 160 178 175 161 144 225 182 159 164 222 208 218 248 163 248 244 243 213 160 180 214 210 210 210 1077 210 211 Slowest Speed 2750 | 160 160 240 260 250 240 245 490 160 490 410 243 249 249 249 249 249 245 243 160 320 300 210 210 210 2750 210 270 Overloaded Moves . | . . . . . . . . . . . . . . . . . . . . . . . . . . . . Propulsion Burnouts . | . . . . . . . . . . . . . . . . . . . . . . . . . . . . Robots Hopped . | . . . . . . . . . . . . . . . . . . . . . . . . . . . . Cave-ins Triggered 1 | . . . . . . . . . . . . . . . . . . . . . . . . . . . 1 Exploration Rate (%) 62 | 2 62 86 90 70 42 59 60 50 27 60 8 97 85 75 80 16 94 96 85 77 99 10 87 79 84 17 52 Regions Visited 27 Branch Regions 15 Pre-discovered Areas 7 | . 1 . . . . 1 . . . . . 1 . 1 . . . . 2 . 1 . . . . . . Known Exits Taken 19 | . . . . 1 . 1 . 1 . 1 1 1 1 1 1 1 1 1 1 . 1 1 1 1 1 1 . Unknown Exits Taken 5 | 1 1 1 1 . . . . . . . . . . . . . . . . 1 . . . . . . . Scrap Searched 36 | . . 1 12 . . . . . . . . 4 2 . . . 4 5 3 . 5 . . . . . . Spaces Dug 304 | . . . . 13 7 48 3 16 8 . 2 18 16 . . . 28 4 2 . 27 5 1 . . 2 104 Terrain Destroyed 1363 | . . . 8 142 25 145 16 62 8 66 11 33 16 . 54 40 57 7 2 19 103 11 8 . . 8 522 Melee 13 | . . . . 1 . . 3 . . . 2 . . . . . 1 4 2 . . . . . . . . Projectile 191 | . . . . . . 7 . . . . . . . . . . . . . 7 66 11 8 . . 8 84 AOE 1145 | . . . 8 141 25 138 13 62 8 66 9 33 16 . 54 33 52 . . 12 37 . . . . . 438 Terrain Rammed . | . . . . . . . . . . . . . . . . . . . . . . . . . . . . Walls Destroyed . | . . . . . . . . . . . . . . . . . . . . . . . . . . . . Machines Disabled . | . . . . . . . . . . . . . . . . . . . . . . . . . . . . Actions | -11 -10 -10 -10 -8 -8 -8 -8 -8 -8 -8 -7 -7 -7 -7 -6 -6 -6 -6 -6 -6 -5 -5 -5 -5 -5 -5 -4 --------- Run | Jun Mat Min Sub Mat Gar Mat Gar Mat Gar Mat Fac Low Low Dat Pro Fac Low Low Zio Dee Pro Fac Ext Cet Arc Hub Fac Total 29228 | 7 766 434 3286 2227 816 937 916 535 187 1137 471 1801 740 94 728 664 1257 1281 1153 2320 2245 723 1178 164 318 704 2139 Wait 5341 | . 125 15 247 898 115 64 27 51 4 209 107 313 27 . 38 66 221 144 32 500 331 425 295 17 72 512 486 Move 20708 | 5 512 401 2816 1146 530 705 731 369 162 706 261 1405 706 88 638 467 958 1051 1069 1612 1716 251 676 138 195 146 1248 Hop . | . . . . . . . . . . . . . . . . . . . . . . . . . . . . Pick Up 255 | . 13 5 31 15 6 15 6 3 . 5 6 5 . . 2 4 1 9 9 36 32 4 3 2 20 . 23 Fast Attach 170 | . 5 . 8 9 11 6 5 8 . 21 3 5 . 1 4 14 4 14 9 16 4 5 . 1 3 . 14 Attach 72 | . . 1 3 9 2 5 3 2 1 . 4 6 . 2 1 6 5 1 2 5 1 1 . 1 . 1 10 Detach 121 | . 2 . 3 . 6 7 2 . . 3 2 4 1 1 1 4 4 1 2 19 13 5 1 2 5 4 29 Swap 289 | 2 6 3 22 20 16 23 13 8 3 14 17 13 4 . 9 12 10 8 5 16 11 6 5 . . 2 41 Drop 354 | . 11 4 23 26 13 10 7 7 . 18 10 16 . 1 5 9 2 21 16 60 33 7 3 2 22 1 27 Fire 1423 | . 43 5 98 89 76 97 65 87 13 96 56 27 2 . 29 79 48 25 . 52 97 18 47 1 1 28 244 Melee 105 | . 1 . 17 10 28 . 16 . . . 2 7 . 1 . . 1 7 9 4 . . . . . . 2 Ram 1 | . . . . . . 1 . . . . . . . . . . . . . . . . . . . . . Kick 11 | . . . . . . . . . . . . . . . . . . . . . . 1 3 . . . 7 Crush 18 | . 2 . . 4 1 4 1 . . . 3 . . . 1 2 . . . . . . . . . . . Escape Stasis 71 | . . . . . 12 . 40 . 4 . . . . . . . . . . . . . 10 . . . 5 Rewire 138 | . . . . . . . . . . . . . . . . . 3 . . . . . 135 . . . . Trap 134 | . 46 . 2 1 . . . . . 65 . . . . . . . . . . 7 . . . . 10 3 Miscellaneous 17 | . . . 16 . . . . . . . . . . . . 1 . . . . . . . . . . . Route ------- -11/Junkyard -10/Materials (discovered 2 exits: [*Mat] / *Min) -10/Mines (discovered 2 exits: [*Mat] / [*Sub]) -10/Subcaves (discovered 3 exits: [*Mat] / *Mat / Rec) -8/Materials (discovered 3 exits: *Fac x2 / Gar) -8/Garrison -8/Materials (discovered 3 exits: *Fac x2 / Gar) -8/Garrison (discovered 3 exits: *Mat x3) -8/Materials (discovered 2 exits: *Fac / Gar) -8/Garrison -8/Materials -7/Factory -7/Lower Caves -7/Lower Caves (discovered 2 exits: *Fac / *Dat) -7/Data Miner -6/Proximity Caves -6/Factory (discovered 2 exits: Fac / *Low) -6/Lower Caves -6/Lower Caves (discovered 2 exits: *Fac / *Zio) -6/Zion (discovered 2 exits: *Dee / [*Pro]) -6/Deep Caves -5/Proximity Caves -5/Factory (discovered 3 exits: Fac x2 / *Ext) -5/Extension (discovered 2 exits: *Fac / *Cet) -5/Cetus (discovered 2 exits: *Fac / *Arc) -5/Archives (discovered 3 exits: *Fac / *Hub x2) -5/Hub_04(d) -4/Factory (discovered 1 exit: *Res) History --------- Turn | Location | Event 4 | -11/Junkyard | Discovered new exit (range 3) 13 | -11/Junkyard | Entered Materials 308 | -10/Materials | Build established: Mutant 858 | -10/Materials | Discovered new exit (range 16) 1128 | -10/Materials | Discovered new exit (range 8) 1164 | -10/Materials | Entered Mines 1210 | -10/Mines | Met a Derelict bent on vengeance 1248 | -10/Mines | Discovered new exit (range 8) 1487 | -10/Mines | Discovered new exit (range 10) 1575 | -10/Mines | Found a damaged Exp. Sensor Array with a note attached 1578 | -10/Mines | Found Prototype Device 1629 | -10/Mines | Learned location of 2 exits from Materials 1679 | -10/Mines | Met a Derelict shopkeep closing up shop 1921 | -10/Mines | Entered Subcaves 2084 | -10/Subcaves | Discovered new exit (range 9) 2296 | -10/Subcaves | Shifting Twisted Machinery released Mak. Armor Plating 2298 | -10/Subcaves | Shifting Twisted Machinery released Battle Rifle 2333 | -10/Subcaves | Discovered new exit (range 5) 3190 | -10/Subcaves | Disturbed a concealed Subdweller 3296 | -10/Subcaves | Identified exit to Recycling 3667 | -10/Subcaves | Ambushed by angry Subdweller bent on revenge 3961 | -10/Subcaves | Shifting Twisted Machinery released Mak. Armor Plating 3975 | -10/Subcaves | Shifting Twisted Machinery released Battle Rifle 4259 | -10/Subcaves | Disturbed a concealed Subdweller 4887 | -10/Subcaves | A swath of the cavern ceiling suddenly collapsed 5106 | -10/Subcaves | Shifting Twisted Machinery released Sub. Power Source 5154 | -10/Subcaves | A swath of the cavern ceiling suddenly collapsed 5205 | -10/Subcaves | Shifting Twisted Machinery released Mak. Flight Unit 7539 | -10/Subcaves | Entered Materials 7539 | -8/Materials | Evolved 4 slots: Propulsion x1, Utility x3 7540 | -8/Materials | Identified exit to Factory 8197 | -8/Materials | Repaired Broken Adv. Treads 8247 | -8/Materials | Repaired Reactive Plating 8388 | -8/Materials | Central database locked down 8451 | -8/Materials | Identified Exp. Sensor Array 8718 | -8/Materials | Repaired Broken Exp. Sensor Array? 8937 | -8/Materials | Garrison activated, responded to threat 10339 | -8/Materials | First assault squad dispatched 10598 | -8/Materials | Identified exit to Garrison 10618 | -8/Materials | Entered Garrison 10618 | -8/Garrison | Accompanied by 1 ally 10676 | -8/Garrison | Triggered checkpoint 10768 | -8/Garrison | Garrison Relay disabled 10790 | -8/Garrison | Triggered checkpoint 11262 | -8/Garrison | Spotted B-75 Beast 11382 | -8/Garrison | Destroyed B-75 Beast 11545 | -8/Garrison | Discovered new exit (range 9) 11630 | -8/Garrison | Garrison Relay disabled 11639 | -8/Garrison | Garrison Relay disabled 11645 | -8/Garrison | Garrison Relay disabled 11648 | -8/Garrison | Garrison Relay disabled 11839 | -8/Garrison | Entered Materials 11839 | -8/Materials | Accompanied by 1 ally 12239 | -8/Materials | First assault squad dispatched 12428 | -8/Materials | Discovered exit to Factory (range 7) 12806 | -8/Materials | Discovered exit to Factory (range 3) 13173 | -8/Materials | Repaired Lyr. Heavy Armor Plating? 13543 | -8/Materials | Destroyed 8 combat bots 13649 | -8/Materials | Identified exit to Garrison 13840 | -8/Materials | Entered Garrison 13840 | -8/Garrison | Accompanied by 2 allies 13889 | -8/Garrison | Destroyed 7 combat bots 13927 | -8/Garrison | Triggered checkpoint 14069 | -8/Garrison | Garrison Relay disabled 14156 | -8/Garrison | Triggered checkpoint 14195 | -8/Garrison | Triggered checkpoint 14253 | -8/Garrison | Triggered checkpoint 14478 | -8/Garrison | Triggered checkpoint 14504 | -8/Garrison | Triggered checkpoint 14540 | -8/Garrison | Triggered checkpoint 14600 | -8/Garrison | Triggered checkpoint 14630 | -8/Garrison | Garrison Relay disabled 14663 | -8/Garrison | Discovered new exit (range 14) 14888 | -8/Garrison | Core integrity fell below 50% 15123 | -8/Garrison | Attempted to access garrison exit controls, blocked by remote lockdown 15283 | -8/Garrison | Discovered new exit (range 8) 15296 | -8/Garrison | Attempted to access garrison exit controls, blocked by remote lockdown 15471 | -8/Garrison | Discovered new exit (range 11) 15489 | -8/Garrison | Entered Materials 15947 | -8/Materials | Discovered exit to Factory (range 15) 16289 | -8/Materials | First assault squad dispatched 16351 | -8/Materials | Garrison activated, responded to threat 16416 | -8/Materials | Identified exit to Garrison 16416 | -8/Materials | Entered Garrison 16482 | -8/Garrison | Garrison Relay disabled 16608 | -8/Garrison | Triggered checkpoint 16686 | -8/Garrison | Discovered new exit (range 8) 16730 | -8/Garrison | Entered Materials 16835 | -8/Materials | System corruption reached 10% 17265 | -8/Materials | Core integrity fell below 20% 17676 | -8/Materials | Discovered exit to Factory (range 11) 18592 | -8/Materials | Repaired Broken Imp. Heavy Treads? 18730 | -8/Materials | First assault squad dispatched 18915 | -8/Materials | Entered Factory 18915 | -7/Factory | Evolved 2 slots: Propulsion x1, Utility x1 19211 | -7/Factory | Build established: Scavenger-Mutant 19261 | -7/Factory | Fabricated Imp. Heavy Treads (x2) 19570 | -7/Factory | Build established: Mutant 19664 | -7/Factory | Discovered new exit (range 5) 19673 | -7/Factory | Identified exit to Lower Caves 19715 | -7/Factory | First assault squad dispatched 19746 | -7/Factory | Entered Lower Caves 19753 | -7/Lower Caves | Met a Warlord Commander 19754 | -7/Lower Caves | Learned location of Warlord (-4) 19762 | -7/Lower Caves | Found Encrypted Comm Array 20435 | -7/Lower Caves | Encountered a Warlord checkpoint 20541 | -7/Lower Caves | Learned location of 1 exit from Factory 20565 | -7/Lower Caves | Identified exit to Lower Caves 20697 | -7/Lower Caves | Attracted the attention of an 0b10 checkpoint 21134 | -7/Lower Caves | Spotted B-75 Beast 21199 | -7/Lower Caves | Destroyed B-75 Beast 23273 | -7/Lower Caves | Entered another Lower Caves area 23341 | -7/Lower Caves | Discovered new exit (range 11) 24052 | -7/Lower Caves | Encountered a Warlord checkpoint 24085 | -7/Lower Caves | Identified exit to Data Miner 24349 | -7/Lower Caves | Learned 4 Factory zone layouts 25071 | -7/Lower Caves | Entered Data Miner 25071 | -7/Data Miner | Discovered new exit (range 6) 25080 | -7/Data Miner | Identified exit to Proximity Caves 25103 | -7/Data Miner | Met Data Miner 25154 | -7/Data Miner | Learned location of Section 7 (-2) 25154 | -7/Data Miner | Acquired the access code to Warlord's prototype stash 25179 | -7/Data Miner | Received God Mode back door access code from Data Miner 25220 | -7/Data Miner | Entered Proximity Caves 25277 | -6/Proximity Caves | Escorted by Enhanced Grunt 25583 | -6/Proximity Caves | Received a Behemoth hack from an annoying Tinkerer 25803 | -6/Proximity Caves | Learned Factory emergency access door positions 26798 | -6/Proximity Caves | Discovered new exit (range 4) 26809 | -6/Proximity Caves | Identified exit to Factory 26956 | -6/Proximity Caves | Entered Factory 26956 | -6/Factory | Accompanied by 1 ally 26956 | -6/Factory | Evolved 2 slots: Power x1, Utility x1 26957 | -6/Factory | Identified exit to Factory 27314 | -6/Factory | Joined by Warlord Infantry squad 27473 | -6/Factory | Incoming investigation squad redirected 27651 | -6/Factory | Repaired Hrd. Heavy Armor Plating 27962 | -6/Factory | Incoming investigation squad redirected 28120 | -6/Factory | Repaired Imp. Heavy Treads 28205 | -6/Factory | Discovered new exit (range 15) 28260 | -6/Factory | Identified exit to Lower Caves 28356 | -6/Factory | First assault squad dispatched 28465 | -6/Factory | Entered Lower Caves 28678 | -6/Lower Caves | Lost 3 parts (3u) 28958 | -6/Lower Caves | Identified exit to Lower Caves 30374 | -6/Lower Caves | Attracted the attention of an 0b10 outpost 31179 | -6/Lower Caves | Entered another Lower Caves area 31179 | -6/Lower Caves | Accompanied by 1 ally 31301 | -6/Lower Caves | Discovered exit to Factory (range 10) 32201 | -6/Lower Caves | Learned location of 1 exit from Factory 32201 | -6/Lower Caves | Learned 8 Research zone layouts 32201 | -6/Lower Caves | Learned Factory emergency access door positions 33088 | -6/Lower Caves | Destroyed IY-7OL(g) 33294 | -6/Lower Caves | Encountered a Warlord checkpoint 33499 | -6/Lower Caves | Discovered new exit (range 13) 33516 | -6/Lower Caves | Identified exit to Zion 33709 | -6/Lower Caves | Entered Zion 33852 | -6/Zion | Discovered new exit (range 14) 33878 | -6/Zion | Given A8's code to call for help 34177 | -6/Zion | Learned location of Testing (-3) 34584 | -6/Zion | Learned Factory emergency access door positions 34605 | -6/Zion | Found Prototype Launcher 34643 | -6/Zion | Identified Gui. Missile Launcher 34850 | -6/Zion | Found Unknown Piercing Weapon 34850 | -6/Zion | Identified CR-A16's Pointy Stick 34961 | -6/Zion | Learned location of 1 exit from Factory 35299 | -6/Zion | Discovered new exit (range 7) 35301 | -6/Zion | Enhanced Grunt warped into view, answering call for help 35301 | -6/Zion | Enhanced Grunt warped into view, answering call for help 35502 | -6/Zion | Saw the warning signs outside the Deep Caves entrance 35505 | -6/Zion | Identified exit to Deep Caves 35508 | -6/Zion | Entered Deep Caves 35508 | -6/Deep Caves | Accompanied by 2 allies 35686 | -6/Deep Caves | Attacked by Z-Imprinter 35694 | -6/Deep Caves | Allies destroyed Z-Imprinter 35736 | -6/Deep Caves | Found Prototype Protection 35736 | -6/Deep Caves | Identified Zio. Weapon Casing 35771 | -6/Deep Caves | Found Prototype Device 35771 | -6/Deep Caves | Identified Zio. Metafield Generator 35957 | -6/Deep Caves | Found Prototype Protection 35957 | -6/Deep Caves | Identified Zio. Heavy Carapace 35960 | -6/Deep Caves | Found Zio. Weapon Casing 36062 | -6/Deep Caves | Found Zio. Heavy Carapace 36068 | -6/Deep Caves | Found Zio. Heavy Carapace 36295 | -6/Deep Caves | Discovered new exit (range 7) 36643 | -6/Deep Caves | Found Prototype Device 36643 | -6/Deep Caves | Identified Exp. Thermal Shield 36721 | -6/Deep Caves | Spotted as-59040 36754 | -6/Deep Caves | Destroyed as-59040 36814 | -6/Deep Caves | Spotted as-44808 36848 | -6/Deep Caves | Destroyed as-44808 36862 | -6/Deep Caves | Found GOLEM Unit 37240 | -6/Deep Caves | Triggered Deep Caves wall 37240 | -6/Deep Caves | Spotted AS-74782 37240 | -6/Deep Caves | Spotted AS-89864 37250 | -6/Deep Caves | Destroyed AS-74782 37262 | -6/Deep Caves | Destroyed AS-89864 37294 | -6/Deep Caves | Found Prototype Energy Cannon 37294 | -6/Deep Caves | Identified YOLO Cannon 37304 | -6/Deep Caves | Destroyed 34 combat bots 37411 | -6/Deep Caves | Exposed GOLEM chamber 37415 | -6/Deep Caves | Found GOLEM Unit 37420 | -6/Deep Caves | Found GOLEM Unit 37720 | -6/Deep Caves | Build established: Golem 38479 | -6/Deep Caves | Found Zio. Heavy Carapace 39205 | -6/Deep Caves | Entered Proximity Caves 39416 | -5/Proximity Caves | Spotted B-75 Beast 39446 | -5/Proximity Caves | Destroyed B-75 Beast 40122 | -5/Proximity Caves | Attracted the attention of an 0b10 base 40143 | -5/Proximity Caves | Core integrity fell below 50% 40472 | -5/Proximity Caves | Learned Armory garrison access intel 40472 | -5/Proximity Caves | Learned Extension garrison access intel 40472 | -5/Proximity Caves | Learned Extension security intel 40472 | -5/Proximity Caves | Learned location of 2 exits from Lower Caves 41227 | -5/Proximity Caves | Attracted the attention of an 0b10 checkpoint 41362 | -5/Proximity Caves | Discovered exit to Factory (range 9) 43569 | -5/Proximity Caves | Entered Factory 43569 | -5/Factory | Evolved 2 slots: Utility x2 43570 | -5/Factory | Identified exit to Extension 43571 | -5/Factory | Identified exit to Factory 44589 | -5/Factory | Entered Extension 44778 | -5/Extension | Rescued a captive Derelict 45237 | -5/Extension | Spotted B-75 Beast 45280 | -5/Extension | Destroyed B-75 Beast 45347 | -5/Extension | Rescued a captive Derelict 45348 | -5/Extension | Rescued a captive Derelict 45389 | -5/Extension | Rescued a captive Derelict 45418 | -5/Extension | Rescued a captive Derelict 45420 | -5/Extension | Rescued a captive Derelict 45445 | -5/Extension | Rescued a captive Derelict 45582 | -5/Extension | Rescued a captive Derelict 45583 | -5/Extension | Rescued a captive Derelict 45588 | -5/Extension | Rescued a captive Derelict 45589 | -5/Extension | Rescued a captive Derelict 45612 | -5/Extension | Rescued A7 45848 | -5/Extension | Build established: Commander-Golem 45858 | -5/Extension | Spotted B-75 Beast 45865 | -5/Extension | Allies destroyed B-75 Beast 46257 | -5/Extension | Rescued a captive Derelict 46441 | -5/Extension | Rescued a captive Derelict 46498 | -5/Extension | Discovered exit to Factory (range 10) 46500 | -5/Extension | Discovered new exit (range 6) 46516 | -5/Extension | Identified exit to Cetus 46599 | -5/Extension | Entered Cetus 46599 | -5/Cetus | Accompanied by 26 allies (A7) 46599 | -5/Cetus | 1 ally did not survive the journey 46604 | -5/Cetus | Acquired a Cetus Manufacturing Module code from A7 46620 | -5/Cetus | Spotted Cetus Guard 46620 | -5/Cetus | Spotted Cetus Guard 46623 | -5/Cetus | Spotted Cetus Guard 46627 | -5/Cetus | Spotted Cetus Guard 46629 | -5/Cetus | Allies destroyed Cetus Guard 46633 | -5/Cetus | Allies destroyed Cetus Guard 46633 | -5/Cetus | Allies destroyed Cetus Guard 46639 | -5/Cetus | Allies destroyed Cetus Guard 46718 | -5/Cetus | Started Cetus Manufacturing Module 46733 | -5/Cetus | Escorted A7 to Cetus Mainframe 46743 | -5/Cetus | Manufactured an Enhanced Grunt 46743 | -5/Cetus | Discovered new exit (range 21) 46768 | -5/Cetus | Manufactured an Enhanced Grunt 46793 | -5/Cetus | Manufactured an Enhanced Grunt 46793 | -5/Cetus | Spotted Cetus Guard 46795 | -5/Cetus | Spotted Cetus Guard 46795 | -5/Cetus | Spotted Cetus Guard 46796 | -5/Cetus | Cetus Manufacturing Module disabled 46802 | -5/Cetus | Discovered exit to Factory (range 22) 46807 | -5/Cetus | Allies destroyed Cetus Guard 46808 | -5/Cetus | Spotted Cetus Guard 46815 | -5/Cetus | Allies destroyed Cetus Guard 46817 | -5/Cetus | Allies destroyed Cetus Guard 46819 | -5/Cetus | Allies destroyed Cetus Guard 46835 | -5/Cetus | Met Revision 17 46904 | -5/Cetus | Identified exit to Archives 46915 | -5/Cetus | Entered Archives 46915 | -5/Archives | Accompanied by 13 allies (A7) 46920 | -5/Archives | Received a hacking code to weaken MAIN.C 46973 | -5/Archives | Discovered exit to Factory (range 16) 46987 | -5/Archives | Discovered new exit (range 19) 47177 | -5/Archives | Discovered new exit (range 16) 49103 | -5/Archives | Identified exit to Hub_04(d) 49138 | -5/Archives | Entered Hub_04(d) 49138 | -5/Hub_04(d) | Accompanied by 9 allies 49138 | -5/Hub_04(d) | Discovered exit to Factory (range 10) 49382 | -5/Hub_04(d) | Destroyed 10 combat bots 49582 | -5/Hub_04(d) | Build established: Golem 50001 | -5/Hub_04(d) | Network Hub disabled 50008 | -5/Hub_04(d) | Spotted Lightning 50024 | -5/Hub_04(d) | Spotted Lightning 50029 | -5/Hub_04(d) | Spotted Lightning 50044 | -5/Hub_04(d) | System corruption reached 10% 50051 | -5/Hub_04(d) | Entered Factory 50051 | -4/Factory | Evolved 2 slots: Utility x2 50522 | -4/Factory | Repaired Centrium Medium Armor Plating 51000 | -4/Factory | Cargo convoy interrupted 51004 | -4/Factory | Spotted Striker 51014 | -4/Factory | Destroyed Striker 51058 | -4/Factory | Found Prototype Launcher 51058 | -4/Factory | Identified Ragnarok Missile Launcher 51064 | -4/Factory | Found Prototype Device 51064 | -4/Factory | Identified Exp. Transmission Jammer 51071 | -4/Factory | Destroyed 14 combat bots 51113 | -4/Factory | Found Ragnarok Missile Launcher 51121 | -4/Factory | Found Prototype Launcher 51204 | -4/Factory | Found Ragnarok Missile Launcher 51210 | -4/Factory | Found Exp. Transmission Jammer 51301 | -4/Factory | Repaired Centrium Medium Armor Plating? 51301 | -4/Factory | First assault squad dispatched 51321 | -4/Factory | Incoming assault squad redirected 51548 | -4/Factory | Destroyed 7 combat bots 51600 | -4/Factory | Incoming assault squad redirected 51828 | -4/Factory | Incoming assault squad redirected 51931 | -4/Factory | Identified Point Singularity Launcher 52113 | -4/Factory | Incoming assault squad redirected 52127 | -4/Factory | Incoming assault squad redirected 52818 | -4/Factory | Crushed by falling debris 53074 | -4/Factory | Incoming assault squad redirected 53296 | -4/Factory | Discovered new exit (range 3) 53313 | -4/Factory | Identified exit to Research 53325 | -4/Factory | Incoming assault squad redirected 53355 | -4/Factory | High security lockdown imminent 53410 | -4/Factory | Destroyed 10 combat bots 53435 | -4/Factory | High security lockdown engaged 53466 | -4/Factory | Spotted B-86 Titan 53529 | -4/Factory | Destroyed 17 combat bots 53695 | -4/Factory | Lost 4 parts (1p3u) 53722 | -4/Factory | Destroyed 7 combat bots 53775 | -4/Factory | Destroyed 8 combat bots 53801 | -4/Factory | Destroyed 8 combat bots 53821 | -4/Factory | Core integrity fell below 50% 53847 | -4/Factory | Core integrity fell below 20% 53851 | -4/Factory | Destroyed by G-67 Veteran with Plasma Rifle Last Messages --------------- 53839_ Dropped GOLEM Unit. 53839_ Asb. Focal Cannon destroyed. 53839_ Dropped GOLEM Unit. 53839_ Penetrated by Slug. 53840_ The unstable cave ceiling collapses. 53841_ Extracted 600 energy. 53842_ Slug penetrates L-61 Swordsman. 53843_ as-79419 GOLEM Unit beginning Asb. Alloy Leg integration. 53843_ Asb. Biocell Array destroyed. 53845_ Centrium Heavy Treads destroyed. 53846_ as-58314 GOLEM Unit beginning Asb. Alloy Leg integration. 53846_ Acquired 59 matter. 53848_ Destroyed Unknown Flight Unit. 53848_ S-27 Virus destroyed. 53848_ Destroyed Unknown Flight Unit. 53848_ S-27 Virus destroyed. 53849_ as-79419 destroyed. 53850_ Ragnarok Missile Launcher destroyed. Map ----- +----------------------------------------------------+ | ??# "" + | | ??# " ####### | | ###"####+"## ########## #?????? | | # # % #???????# #?????? | | # # # #???????# #?????? | | !%! #???????# #?????? | | *=# #???????# #?????? | | #= * #???????# #?????? | | = #???????# #?????? | | # % /#! #???????# #?????? | | # / =%[% [#???????? ??????? | | # ! # =%## ######???????? ??????? | | # !*# / ############??? ??????? | | # # ##?? ??????? | | # # ! % ### ##????? | | /! # / *% ????? | | %* [ g%% ????? | | #=# # = i /%=%[# ?????? | | ## #### %% g ** gg ??????? | | ?###??# g ????????? | | ??????# gY #?????????? | | ?????### # ;#?????????? | | ??? %g ;#??? #???? | | ???"" # ]! ## #"""" | | ??""" # %/!!G;;;; | | ??""" @ ll!!! | | # = % /!!! | | ? """ ] | | ??""" # % s ? | | ??""" # ? | | ?? ?## ! ?? | | ?#####???? ?? | | ?????????? % ! ?? | | ????????? = s= ??? | | ????????? % % ;;;###"""" """"??? | | ????????? ### ?? ###???? | | ????????" # ##?? ? /?????? | | ????????" # ##??? ? #?????? | | ???????? # ##???? ?? ???????? | | ???????? ?# #?????? ????????????? | | ??????????? ????????????????????? | | ????????????????????????????????????? | | ????????????????????????????????????? | | ????????????????????????????????????? | | ????????????????????????????????????? | | ????????????????????????????????????? | | ????????????????????????????????????? | | ????????????????????????????????????? | | ????????????????????????????????????? | | ????????????????????????????????????? | +----------------------------------------------------+ Best States ------------- Heat Dissipation 88 Energy Generation 45 Energy Capacity 1710 Matter Stores 300 Matter Capacity 300 Sight Range 22 Robot Scan Range 20 Terrain Scan Density 10 Jamming Range 22 Additional Mass Support 20 Corruption Block 8 Armor Coverage 3200 Resistance: KI 30 Resistance: TH 30 Resistance: EX 25 Resistance: EM 15 Resistance: I 15 Resistance: S 15 Resistance: P 15 Core Shielding 20 Weapon Shielding 100 Weapon Cycling 20 Phase Shifting 8 Evasion (%) 48 Targeting Accuracy 20 Core Analysis 8 Recoil Reduction 4 Particle Charging 25 Offensive Hacking 14 Authchip Count 1 Item Schematics ----------------- Exp. Sensor Array | -8/Materials | Scanalyzed Imp. Heavy Treads | -8/Materials | Scanalyzed Hrd. Heavy Armor Plating | -8/Materials | Scanalyzed Combat Drone Bay | -7/Data Miner | Free Lgt. Regenerative Plating | -7/Data Miner | Free Cld. Cesium-ion Thruster | -7/Data Miner | Free Exp. Targeting Computer | -7/Data Miner | Free Antimatter Cannon | -7/Data Miner | Free Linear Gravjet | -7/Data Miner | Free Adv. Cooling System | -7/Data Miner | Free Hvy. Shock Bomb Launcher | -7/Data Miner | Free Point Defense Array | -7/Data Miner | Free Field Propulsion Drive | -6/Zion | Archive Spk. Medium Treads | -6/Zion | Archive Adv. Coolant Injector | -6/Zion | Archive Hvy. Plasma Cannon | -6/Zion | Archive Hyp. Coil Gun | -6/Zion | Archive Force Field | -6/Zion | Archive Imp. Shock Absorption System | -6/Zion | Archive Arm. Leg | -6/Zion | Archive Imp. Plasma Cutter | -6/Zion | Archive Lgt. Angular Momentum Engine | -6/Zion | Archive Imp. Antigrav System | -6/Zion | Archive Neutrino Core | -6/Zion | Archive Lyr. Medium Armor Plating | -6/Zion | Archive Imp. Recalibrator | -6/Zion | Archive Robot Schematics ------------------ G-47 Trooper | -7/Data Miner | Free L-41 Fighter | -7/Data Miner | Free B-48 Gladiator | -7/Data Miner | Free M-22 Extractor | -7/Data Miner | Free R-06 Scavenger | -6/Zion | Archive E-15 Imp | -6/Zion | Archive L-61 Swordsman | -6/Zion | Archive Fabricated ------------ Imp. Heavy Treads | x2 | -7/Factory Alien Tech Used ----------------- None Achievements -------------- None Challenges ------------ None Game ------ Seed CorruptionAntigravLegs Manual? 0 Play Time 03:49:22 Cumulative 1307.8 hours Start 2023.06.24 @ 16:56:14 End 2023.06.25 @ 00:54:00 Sessions 9 Manual Loads 0 Difficulty Rogue Special Mode None Game No. 945 Rogue 941 Adventurer 4 Explorer 0 Win Type - Total 149 Types 111/10/10/6/2/1/1/5/3 Lore% 94 Gallery% 97 Achievement% 98 Wizard Run 0 Options --------- ASCII 0 Keyboard 1 Movement Vi Keybinds 0 Fullscreen 0 Font 20/X11 Map View 76x50 Tactical HUD 1 Map Filters NONE Filters NONE Steam 1 RUN: 39ddacd0-a969-4d45-9703-1749607bc153